bitfinex/quotes_ETHUSD_20240610
["timestamp","ask_amount","ask_price","bid_price","bid_amount"]
[1718036949495,6.09e-06,3687.0,3686.9,6.0053]
[1718036949718,0.006,3688.8,3687.5,2.4016]
[1718036949944,4.33190424,3689.2,3688.5,0.715]
[1718036950087,2.71068,3689.2,3687.6,7.44]
[1718036950430,3.032,3689.3,3688.2,3.4263]
[1718036950431,2.71082,3689.0,3688.2,3.4263]
[1718036950804,8.1332,3688.9,3688.2,3.4263]
[1718036951130,1.155902,3688.8,3688.2,3.4263]
[1718036951621,8.1332,3688.7,3688.2,3.4263]
[1718036952197,8.1332,3688.7,3688.4,0.715]
[1718036954494,8.1332,3688.7,3688.2,2.7113]
[1718036954898,8.1332,3688.7,3688.3,0.715]
[1718036955302,2.2958,3688.6,3687.8,2.71158]
[1718036955528,9.447197,3688.5,3688.0,0.715]
[1718036956129,9.447197,3688.5,3687.8,2.71158]
[1718036956328,2.2958,3688.1,3687.2,0.568058]
[1718036956535,2.2958,3688.1,3687.2,2.71206]
[1718036956536,8.1332,3688.0,3687.2,2.71206]
[1718036956733,1.1144,3687.9,3687.2,3.42706]
[1718036956932,8.8482,3687.8,3686.9,2.71227]
[1718036957145,2.71182,3687.6,3686.9,3.42727]
[1718036957341,8.1332,3687.5,3687.1,0.715]
[1718036957820,8.1332,3687.5,3686.9,2.71227]
[1718036957996,8.1332,3687.5,3687.0,0.715]
[1718036958201,9.502282,3687.5,3687.0,0.715]
[1718036958403,8.1332,3687.5,3687.2,0.715]
[1718036960207,8.1332,3687.5,3687.0,0.715]
[1718036962710,8.1332,3687.5,3687.2,0.715]
[1718036964104,8.1332,3687.5,3687.4,0.715]
[1718036964599,8.1332,3687.5,3687.2,0.715]
[1718036967835,8.1332,3687.5,3687.4,0.715]
[1718036970739,8.1332,3687.5,3687.4,2.9688]
[1718036974664,8.1332,3687.5,3687.4,5.9688]
[1718036975530,8.1332,3687.5,3687.4,6.536858]
[1718036976123,8.1332,3687.5,3687.4,5.9688]
[1718036976322,8.1332,3687.5,3687.4,6.66300204]
[1718036978169,8.1332,3687.5,3687.2,0.568058]
[1718036978170,10.6124,3687.5,3687.2,0.568058]
[1718036978339,10.6124,3687.5,3687.0,0.85208701]
[1718036978340,0.715,3687.3,3687.1,0.568058]
[1718036978539,0.715,3687.3,3686.3,2.41505991]
[1718036978540,10.6124,3687.5,3686.7,0.715]
[1718036978541,9.26594,3687.2,3686.7,0.715]
[1718036978758,11.97802,3687.2,3686.9,0.715]
[1718036980361,8.1332,3687.2,3686.4,2.3175]
[1718036980669,8.1332,3687.2,3687.1,0.715]
[1718036980826,8.1332,3687.2,3686.5,1.716]
[1718036984865,8.1332,3687.2,3686.6,2.71252]
[1718036987168,2.71217,3687.1,3686.3,1.716]
[1718036987371,2.71258,3686.6,3686.0,0.61499616]
[1718036987584,2.71232,3686.9,3686.0,2.75983816]
[1718036987888,2.71232,3686.9,3686.2,1.716]
[1718036987889,8.1332,3686.8,3686.2,1.716]
[1718036989949,8.1332,3686.8,3686.6,1.716]
[1718036990914,8.1332,3686.8,3686.4,2.71261]
[1718036991585,8.1332,3686.8,3686.6,1.716]
[1718036992565,8.1332,3686.8,3686.6,4.42848]
[1718036992973,8.1332,3686.8,3686.7,2.3128]
[1718036993186,8.1332,3686.8,3686.7,2.60348402]
[1718036993386,7.40248281,3686.8,3686.7,5.31593402]
[1718036993708,7.40248281,3686.8,3686.7,9.16802103]
[1718036993909,7.40248281,3686.8,3686.7,11.02838402]
[1718036994061,7.40248281,3686.8,3686.7,11.87872275]
[1718036994658,7.40248281,3686.8,3686.7,9.16627275]
[1718036995073,7.40248281,3686.8,3686.7,10.88227275]
[1718036995581,7.40248281,3686.8,3686.7,10.03193402]
[1718036995777,7.40248281,3686.8,3686.7,10.59886891]
[1718036996307,7.40248281,3686.8,3686.7,13.31131891]
[1718036996479,7.40248281,3686.8,3686.7,13.59472275]
[1718036997763,7.40248281,3686.8,3686.7,12.74438402]
[1718036998777,7.40248281,3686.8,3686.7,13.59492874]
[1718036999704,7.40248281,3686.8,3686.7,12.74438402]
[1718037000098,7.40248281,3686.8,3686.7,13.88050003]
[1718037000871,7.40248281,3686.8,3686.7,12.74438402]
[1718037001685,7.40248281,3686.8,3686.7,13.87868827]
[1718037002206,7.40248281,3686.8,3686.7,13.8871989]
[1718037002907,7.40248281,3686.8,3686.7,12.75289465]
[1718037003207,7.40248281,3686.8,3686.7,12.1711989]
[1718037003374,7.40248281,3686.8,3686.7,13.8871989]
[1718037003572,7.40248281,3686.8,3686.7,13.17723989]
[1718037004278,7.40248281,3686.8,3686.7,14.31154414]
[1718037004612,7.40248281,3686.8,3686.7,15.88968989]
[1718037004775,7.40248281,3686.8,3686.7,13.17723989]
[1718037005390,7.40248281,3686.8,3686.7,15.88968989]
[1718037005713,7.40248281,3686.8,3686.7,14.31145467]
[1718037006277,7.40248281,3686.8,3686.7,11.46123989]
[1718037006492,7.40248281,3686.8,3686.7,14.02793365]
[1718037007095,7.40248281,3686.8,3686.7,15.88968989]
[1718037007380,7.40248281,3686.8,3686.7,16.74038365]
[1718037007906,7.40248281,3686.8,3686.7,15.88968989]
[1718037008418,7.40248281,3686.8,3686.7,17.30745517]
[1718037009473,7.40248281,3686.8,3686.7,15.88968989]
[1718037009688,7.18305266,3686.8,3686.7,15.88968989]
[1718037009890,7.18305266,3686.8,3686.7,17.30745517]
[1718037010198,2.4528,3688.5,3688.1,2.71142]
[1718037010399,0.24588,3688.4,3688.1,2.71142]
[1718037010722,0.24588,3688.4,3688.2,0.00851063]
[1718037011329,2.4528,3688.5,3688.3,2.71127]
[1718037014793,2.4528,3688.5,3688.0,2.71144]
[1718037018414,2.4528,3688.5,3688.2,2.71133]
[1718037019100,2.4183,3688.8,3688.2,2.71133]
[1718037021519,2.71098,3688.7,3688.2,2.71133]
[1718037021738,0.512928,3688.6,3688.2,2.71133]
[1718037022145,0.512928,3688.6,3687.9,2.7115]
[1718037022535,2.71113,3688.5,3687.9,2.7115]
[1718037023206,2.7113,3688.3,3687.6,4.42775]
[1718037023407,2.4944,3688.2,3687.6,2.71175]
[1718037026042,2.4944,3688.2,3687.3,7.44]
[1718037026339,2.4287,3687.8,3687.0,2.71217]
[1718037027147,2.4287,3687.8,3687.2,2.71205]
[1718037027910,2.4287,3687.8,3687.2,4.42805]
[1718037028149,5.00709,3688.2,3687.4,2.71191]
[1718037028916,2.7115,3688.0,3687.4,2.71191]
[1718037029122,0.51167,3687.9,3687.4,2.71191]
[1718037029851,2.7115,3688.0,3687.4,2.71191]
[1718037032573,2.7115,3688.0,3687.1,4.42809]
[1718037033425,2.71165,3687.8,3687.1,4.42809]
[1718037035019,2.4513,3688.2,3686.8,2.71232]
[1718037035225,2.4513,3687.9,3686.7,0.99135554]
[1718037035420,2.4513,3687.9,3686.7,0.42434524]
[1718037035644,2.71134,3688.3,3686.7,0.42434524]
[1718037035645,2.4513,3687.7,3686.7,0.42434524]
[1718037036004,2.4513,3687.5,3686.7,0.42434524]
[1718037036126,8.136,3687.4,3686.7,0.42434524]
[1718037037030,2.71211,3687.2,3686.7,0.42434524]
[1718037042653,8.136,3687.1,3686.7,0.42434524]
[1718037043345,2.5991,3686.9,3686.7,0.42434524]
[1718037043751,8.136,3686.8,3686.7,0.42434524]
[1718037044685,8.136,3686.8,3686.0,10.15291]
[1718037044886,10.84839,3686.8,3686.3,0.4244982]
[1718037049075,10.84839,3686.8,3686.4,0.715]
[1718037049660,2.71253,3686.6,3686.3,0.4244982]
[1718037049865,8.136,3686.5,3686.3,1.1394982]
[1718037050880,2.71267,3686.4,3686.3,0.4244982]
[1718037051045,10.84867,3686.4,3686.3,0.4244982]
[1718037051253,10.84867,3686.4,3686.1,0.715]
[1718037051447,10.84867,3686.4,3685.7,2.71313]
[1718037051642,10.84867,3686.4,3686.1,0.715]
[1718037052178,11.933537,3686.4,3686.1,0.715]
[1718037052749,2.71283,3686.2,3685.5,7.44]
[1718037053065,7.421,3686.1,3686.0,0.715]
[1718037053781,7.421,3686.1,3685.4,2.71335]
[1718037054083,7.421,3686.1,3685.8,0.715]
[1718037054284,3.989143,3686.0,3685.7,0.715]
[1718037054461,7.421,3685.9,3685.7,0.715]
[1718037054862,2.71311,3685.8,3685.0,2.66365]
[1718037055093,2.71311,3685.8,3685.6,0.715]
[1718037055094,7.421,3685.7,3685.6,0.715]
[1718037057993,8.5620273,3685.7,3685.6,0.715]
[1718037059697,8.5620273,3685.7,3684.9,2.71371]
[1718037059868,8.5620273,3685.7,3685.1,0.715]
[1718037059869,2.71342,3685.4,3685.1,0.715]
[1718037060073,7.421,3685.3,3685.1,0.715]
[1718037061694,7.421,3685.3,3685.2,2.71355]
[1718037061860,7.421,3685.3,3685.2,3.326365]
[1718037062971,7.421,3685.3,3685.2,5.043365]
[1718037063170,7.421,3685.3,3685.2,7.742965]
[1718037063578,7.421,3685.3,3685.2,10.456515]
[1718037063807,7.421,3685.3,3685.2,8.739515]
[1718037064023,7.421,3685.3,3685.2,2.71355]
[1718037071166,7.421,3685.3,3685.2,3.13815763]
[1718037071804,7.421,3685.3,3685.2,0.42460763]
[1718037072025,10.0472,3685.3,3685.2,0.42460763]
[1718037072315,10.0472,3685.3,3684.3,1.717]
[1718037072481,11.05192,3685.3,3684.9,0.42466407]
[1718037072682,11.05192,3685.3,3684.9,0.41525953]
[1718037072878,11.05192,3685.3,3684.6,2.71394]
[1718037073092,3.818792,3685.2,3684.6,2.71394]
[1718037073705,3.818792,3685.2,3684.3,1.717]
[1718037073706,7.421,3685.1,3684.3,4.43117]
[1718037074798,7.421,3685.1,3684.5,2.71404]
[1718037075808,7.421,3685.1,3684.7,2.7139]
[1718037076905,7.421,3685.1,3684.9,2.71374]
[1718037078081,7.421,3685.1,3684.6,2.71395]
[1718037078612,2.6256,3685.0,3684.6,2.71395]
[1718037081067,7.421,3685.1,3684.6,2.71395]
[1718037083914,10.13464,3685.1,3684.3,4.43116]
[1718037084227,10.13464,3685.1,3684.3,2.71416]
[1718037084228,11.427252,3685.1,3684.3,2.71416]
[1718037084448,2.7574,3685.0,3684.1,0.04719114]
[1718037084619,2.7574,3685.0,3683.2,2.2840103]
[1718037084620,2.7574,3684.8,3683.2,2.2840103]
[1718037084914,2.7574,3684.8,3683.2,1.717]
[1718037084915,7.421,3684.7,3683.2,1.717]
[1718037085879,7.421,3684.7,3683.9,2.71449]
[1718037085880,2.71406,3684.6,3683.9,2.71449]
[1718037086094,7.421,3684.5,3683.9,2.71449]
[1718037089618,2.71415,3684.4,3683.9,2.71449]
[1718037089821,7.421,3684.3,3683.9,2.71449]
[1718037090517,2.71429,3684.2,3683.6,2.71468]
[1718037090718,8.434529,3684.1,3683.6,2.71468]
[1718037091287,7.421,3684.1,3683.6,2.71468]
[1718037092595,7.421,3684.1,3683.1,10.1134]
[1718037092596,2.71444,3684.0,3683.3,2.71491]
[1718037092793,7.421,3683.9,3683.3,2.71491]
[1718037095392,7.421,3683.9,3683.5,2.71479]
[1718037095592,7.421,3683.9,3683.8,1.717]
[1718037098964,7.421,3683.9,3683.8,1.99952486]
[1718037099118,7.421,3683.9,3683.8,1.717]
[1718037100017,7.421,3683.9,3683.7,2.71464]
[1718037105042,7.421,3683.9,3683.1,2.71507]
[1718037105260,7.421,3683.9,3683.6,2.71471]
[1718037106953,7.421,3683.9,3683.8,0.716]
[1718037109761,7.421,3683.9,3683.6,2.71471]
[1718037109964,7.421,3683.9,3683.8,0.716]
[1718037110154,7.421,3683.9,3683.6,2.71471]
[1718037110352,7.421,3683.9,3683.8,0.716]
[1718037111156,7.421,3683.9,3683.6,2.71471]
[1718037111358,7.421,3683.9,3683.8,0.716]
[1718037111759,7.421,3683.9,3683.6,2.71471]
[1718037111973,2.6477,3683.8,3683.6,2.71471]
[1718037112198,7.421,3683.7,3683.6,2.71471]
[1718037112384,7.421,3683.7,3683.6,3.43071]
[1718037116095,7.421,3683.7,3683.6,6.14544]
[1718037117976,7.421,3683.7,3683.6,3.43071]
[1718037120376,7.421,3683.7,3683.6,4.13022268]
[1718037122195,7.421,3683.7,3683.6,6.84495268]
[1718037123322,7.421,3683.7,3683.6,9.59115268]
[1718037123786,7.421,3683.7,3683.6,10.15816298]
[1718037124196,7.421,3683.7,3683.6,9.59115268]
[1718037124774,7.421,3683.7,3683.6,12.30588268]
[1718037124972,7.421,3683.7,3683.6,13.15639813]
[1718037125213,7.421,3683.7,3683.6,16.15639813]
[1718037125604,2.8572,3685.4,3685.1,2.71361]
[1718037125801,5.29549503,3685.4,3685.2,0.716]
[1718037126022,5.29549503,3685.4,3685.2,0.00851064]
[1718037126023,2.8572,3685.4,3685.2,0.00851064]
[1718037126936,8.1404,3685.3,3685.2,0.00851064]
[1718037127144,10.8626,3685.3,3685.2,0.00851064]
[1718037129040,10.8626,3685.3,3685.2,0.72451064]
[1718037130237,8.1404,3685.3,3685.2,0.72451064]
[1718037130853,8.1404,3685.3,3685.2,0.00851064]
[1718037131021,9.21367,3685.3,3685.2,0.00851064]
[1718037133340,11.73707,3685.3,3685.2,0.00851064]
[1718037138880,10.6638,3685.3,3685.2,0.00851064]
[1718037139058,8.1404,3685.3,3685.2,0.72451064]
[1718037141550,8.1404,3685.3,3685.2,3.30461064]
[1718037145571,8.1404,3685.3,3685.2,6.30461064]
[1718037145948,8.1404,3685.3,3685.2,6.5906858]
[1718037146464,8.1404,3685.3,3685.2,7.15914628]
[1718037146860,8.1404,3685.3,3685.2,6.5906858]
[1718037150893,8.1404,3685.3,3685.2,5.8746858]
[1718037151364,8.1404,3685.3,3685.2,2.8746858]
[1718037151560,8.1404,3685.3,3685.2,0.2945858]
[1718037151756,8.1404,3685.3,3685.2,0.00851064]
[1718037152191,8.1404,3685.3,3685.2,0.72451064]
[1718037152555,8.1404,3685.3,3685.2,0.00851064]
[1718037172912,8.1404,3685.3,3685.2,0.72351064]
[1718037173296,8.1404,3685.3,3685.2,1.3385907]
[1718037175495,8.1404,3685.3,3685.2,4.2400907]
[1718037176504,8.1404,3685.3,3685.2,4.80855118]
[1718037177009,8.1404,3685.3,3685.2,4.2400907]
[1718037178620,8.1404,3685.3,3685.2,5.09278142]
[1718037178799,8.1404,3685.3,3685.2,4.2400907]
[1718037180422,8.1404,3685.3,3685.2,5.09278142]
[1718037181113,8.1404,3685.3,3685.2,4.80768784]
[1718037182833,8.1404,3685.3,3685.2,1.90618784]
[1718037183034,8.1404,3685.3,3685.2,1.3385907]
[1718037185514,8.1404,3685.3,3685.2,1.90650026]
[1718037185934,8.1404,3685.3,3685.2,1.9065088]
[1718037186713,8.1404,3685.3,3685.2,1.3385907]
[1718037186944,8.1404,3685.3,3685.2,0.6235907]
[1718037187244,8.1404,3685.3,3685.2,1.3385907]
[1718037187934,8.1404,3685.3,3685.2,1.9065088]
[1718037195952,8.1404,3685.3,3685.2,1.9066907]
[1718037197358,8.1404,3685.3,3685.2,1.3385907]
[1718037199834,8.1404,3685.3,3685.2,1.9066907]
[1718037204172,8.1404,3685.3,3685.2,1.3385907]
[1718037205169,8.1404,3685.3,3685.2,1.47628142]
[1718037205369,8.1404,3685.3,3685.2,2.19128142]
[1718037206055,8.1404,3685.3,3685.2,1.3385907]
[1718037208755,8.1404,3685.3,3685.2,1.90741472]
[1718037209692,8.1404,3685.3,3685.2,1.3385907]
[1718037211092,8.1404,3685.3,3685.2,2.19128142]
[1718037212189,8.1404,3685.3,3685.2,1.3385907]
[1718037212776,8.1404,3685.3,3685.2,2.1920776]
[1718037212977,8.1404,3685.3,3685.2,1.3385907]
[1718037213288,8.1404,3685.3,3685.2,2.47551167]
[1718037214197,8.1404,3685.3,3685.2,1.76051167]
[1718037214405,8.1404,3685.3,3685.2,2.47551167]
[1718037217024,8.1404,3685.3,3685.2,4.1922907]
[1718037217318,8.1404,3685.3,3685.2,7.1922907]
[1718037218498,8.0912307,3685.3,3685.2,7.1922907]
[1718037218702,8.0912307,3685.3,3685.2,8.89854753]
[1718037219798,8.0912307,3685.3,3685.2,5.32984753]
[1718037219997,8.0912307,3685.3,3685.2,8.94664753]
[1718037220607,8.0912307,3685.3,3685.2,7.2403907]
[1718037221105,8.0912307,3685.3,3685.2,6.5253907]
[1718037221428,8.0912307,3685.3,3685.2,7.2403907]
[1718037224984,8.044127,3685.3,3685.2,7.2403907]
[1718037227806,8.044127,3685.3,3685.2,9.14675777]
[1718037229229,7.823417,3685.3,3685.2,9.14675777]
[1718037229380,7e-06,3685.3,3685.2,9.89675777]
[1718037229583,2.7372,3686.9,3686.8,5.42474]
[1718037229834,2.7372,3687.4,3687.3,2.71195]
[1718037230056,3.20860485,3687.4,3687.3,3.42695]
[1718037230240,3.20860485,3687.4,3687.3,3.43546064]
[1718037230241,2.7372,3687.4,3687.3,3.43546064]
[1718037231122,8.155,3688.2,3687.7,2.71169]
[1718037231123,3.43798113,3688.0,3687.7,2.71169]
[1718037231468,2.5903,3688.0,3687.8,0.715]
[1718037231627,3.04701485,3688.0,3687.8,0.715]
[1718037231938,2.5903,3688.0,3687.9,2.71157]
[1718037237200,2.5903,3688.0,3687.9,3.42657]
[1718037239133,2.5903,3688.0,3687.9,3.43508064]
[1718037239505,2.7468,3688.6,3688.1,2.71139]
[1718037239839,3.293181,3688.6,3688.4,0.715]
[1718037240050,2.7468,3688.6,3688.4,0.715]
[1718037242042,2.7468,3688.6,3687.6,2.71177]
[1718037242043,2.7468,3688.6,3688.0,2.71144]
[1718037242238,2.7468,3688.6,3688.2,0.715]
[1718037242443,2.627,3688.4,3688.2,0.715]
[1718037243014,1.9237,3688.3,3688.2,0.715]
[1718037244450,2.2327,3688.2,3687.1,7.44]
[1718037244641,2.2327,3688.2,3687.4,0.715]
[1718037244642,1.9237,3688.1,3687.4,0.715]
[1718037244843,1.9237,3688.1,3687.4,3.42688]
[1718037244844,2.2327,3687.9,3687.4,3.42688]
[1718037245151,2.2327,3687.9,3687.3,0.715]
[1718037245152,1.9237,3687.8,3687.3,0.715]
[1718037245447,1.9237,3687.8,3687.1,2.71211]
[1718037245448,2.71172,3687.7,3687.1,2.71211]
[1718037245749,1.9237,3687.6,3687.2,0.715]
[1718037245952,1.9237,3687.6,3687.4,0.715]
[1718037251348,1.9237,3687.6,3687.0,2.71219]
[1718037251551,1.9237,3687.6,3687.4,0.715]
[1718037253221,0.463543,3687.5,3686.6,2.71246]
[1718037253550,1.9237,3687.4,3687.3,0.715]
[1718037256682,4.8183,3687.4,3687.3,0.715]
[1718037257033,4.8183,3687.4,3687.1,0.715]
[1718037257034,2.71215,3687.2,3687.1,0.715]
[1718037257285,2.71215,3687.2,3686.3,2.7209]
[1718037257427,2.71215,3687.2,3687.0,0.715]
[1718037257827,4.8183,3687.4,3687.0,0.715]
[1718037258053,1.9237,3687.1,3687.0,0.715]
[1718037260854,1.9237,3687.1,3686.8,2.8338]
[1718037261056,1.9237,3687.1,3687.0,0.715]
[1718037262815,1.9237,3687.1,3686.6,2.71248]
[1718037263022,1.9237,3687.1,3687.0,0.715]
[1718037266103,1.9237,3687.1,3687.0,1.347255]
[1718037267112,1.9237,3687.1,3687.0,4.059485]
[1718037267474,1.9237,3687.1,3687.0,6.771715]
[1718037268005,1.9237,3687.1,3687.0,4.059485]
[1718037268563,1.9237,3687.1,3687.0,6.771715]
[1718037269495,1.9237,3687.1,3687.0,4.059485]
[1718037269800,1.9237,3687.1,3687.0,6.771715]
[1718037271204,1.9237,3687.1,3687.0,4.059485]
[1718037271383,1.9237,3687.1,3687.0,3.344485]
[1718037271710,1.9237,3687.1,3687.0,4.059485]
[1718037275170,1.9237,3687.1,3687.0,3.344485]
[1718037275370,1.9237,3687.1,3687.0,4.059485]
[1718037275787,1.920987,3687.1,3687.0,4.059485]
[1718037281111,1.920987,3687.1,3687.0,3.344485]
[1718037281315,1.920987,3687.1,3687.0,2.71223]
[1718037281513,1.920987,3687.1,3686.7,2.7124]
[1718037281690,1.920987,3687.1,3686.9,0.715]
[1718037282781,1.920987,3687.1,3686.9,3.42728]
[1718037284891,1.920987,3687.1,3687.0,0.715]
[1718037289514,1.920987,3687.1,3686.9,2.71228]
[1718037290025,1.920987,3687.1,3686.6,2.71247]
[1718037290722,1.920987,3687.1,3687.0,0.715]
[1718037290929,2.3842807,3687.1,3687.0,0.715]
[1718037291153,2.3842807,3687.1,3686.6,2.71247]
[1718037291293,5.68653,3687.0,3686.5,0.04716354]
[1718037291493,2.71238,3686.8,3686.5,0.04716354]
[1718037291733,2.9382,3686.6,3686.5,0.04716354]
[1718037291931,4.859187,3686.6,3686.5,0.04716354]
[1718037293244,4.859187,3686.6,3686.2,0.715]
[1718037293439,5.6163437,3686.6,3686.2,0.715]
[1718037294437,8.3289037,3686.6,3686.2,0.715]
[1718037295439,2.71271,3686.4,3686.2,0.715]
[1718037295769,1.920987,3686.3,3685.9,0.04717508]
[1718037295969,1.920987,3686.3,3686.2,0.715]
[1718037296334,1.920987,3686.3,3685.9,0.04717508]
[1718037296335,2.71283,3686.2,3686.0,0.715]
[1718037296684,1.920987,3686.1,3686.0,0.715]
[1718037302151,1.920987,3686.1,3685.9,0.04717508]
[1718037302346,1.920987,3686.1,3685.9,0.76217508]
[1718037305953,1.920987,3686.1,3686.0,3.0284]
[1718037306893,1.920987,3686.1,3686.0,3.36332651]
[1718037308481,1.920987,3686.1,3686.0,4.07832651]
[1718037312961,1.920987,3686.1,3686.0,1.36536651]
[1718037313895,1.920987,3686.1,3686.0,4.12176651]
[1718037322409,1.920987,3686.1,3686.0,6.83472651]
[1718037322617,1.920987,3686.1,3686.0,9.54768651]
[1718037324389,1.920987,3686.1,3686.0,10.11616722]
[1718037324718,1.920987,3686.1,3686.0,9.54768651]
[1718037325212,1.920987,3686.1,3686.0,10.11616722]
[1718037326131,1.920987,3686.1,3686.0,12.82912722]
[1718037326878,1.920987,3686.1,3686.0,12.26064651]
[1718037327079,1.920987,3686.1,3686.0,12.82850525]
[1718037327495,1.920987,3686.1,3686.0,12.26064651]
[1718037328212,1.920987,3686.1,3686.0,9.68540757]
[1718037328513,1.920987,3686.1,3686.0,8.83268651]
[1718037328714,1.920987,3686.1,3686.0,10.11569508]
[1718037330522,1.920987,3686.1,3686.0,9.54768651]
[1718037332408,1.920987,3686.1,3686.0,6.64444445]
[1718037332614,1.920987,3686.1,3686.0,7.35944445]
[1718037332923,1.920987,3686.1,3686.0,6.79128651]
[1718037333389,1.920987,3686.1,3686.0,7.35944445]
[1718037333592,1.920987,3686.1,3686.0,6.79128651]
[1718037335095,1.920987,3686.1,3686.0,7.35944445]
[1718037337128,1.920987,3686.1,3686.0,6.79128651]
[1718037337439,1.920987,3686.1,3686.0,7.35965437]
[1718037338929,1.920987,3686.1,3686.0,9.71938651]
[1718037340326,1.920987,3686.1,3686.0,12.43234651]
[1718037341030,1.920987,3686.1,3686.0,9.71938651]
[1718037341726,1.920987,3686.1,3686.0,10.57210757]
[1718037342067,1.920987,3686.1,3686.0,13.28506757]
[1718037344032,1.920987,3686.1,3686.0,12.43234651]
[1718037344281,1.920987,3686.1,3686.0,15.43234651]
[1718037346243,1.920987,3686.1,3686.0,16.28484417]
[1718037347970,1.920987,3686.1,3686.0,15.43234651]
[1718037351172,1.920987,3686.1,3686.0,12.71938651]
[1718037351675,1.920987,3686.1,3686.0,9.07628651]
[1718037351861,1.920987,3686.1,3686.0,6.42796]
[1718037352047,1.920987,3686.1,3686.0,6.99657423]
[1718037353137,1.920987,3686.1,3686.0,6.42796]
[1718037354466,1.920987,3686.1,3686.0,7.28088135]
[1718037355334,1.920987,3686.1,3686.0,6.42796]
[1718037355545,1.920987,3686.1,3686.0,7.28088135]
[1718037355946,1.920987,3686.1,3686.0,6.42796]
[1718037357053,1.920987,3686.1,3686.0,7.28088135]
[1718037360644,1.920987,3686.1,3686.0,3.56588135]
[1718037360848,1.920987,3686.1,3686.0,2.71296]
[1718037361082,1.920987,3686.1,3686.0,3.9969847]
[1718037361285,1.920987,3686.1,3686.0,2.71296]
[1718037361486,1.920987,3686.1,3686.0,3.42796]
[1718037362161,1.920987,3686.1,3686.0,2.72147064]
[1718037362368,4.846187,3686.1,3686.0,3.43647064]
[1718037362676,5.3308057,3686.1,3686.0,2.72147064]
[1718037363053,5.3308057,3686.1,3686.0,3.43647064]
[1718037364390,4.846187,3686.1,3686.0,3.43647064]
[1718037364686,1.920987,3686.1,3686.0,3.43647064]
[1718037365192,1.920987,3686.1,3686.0,2.72147064]
[1718037365357,1.920987,3686.1,3686.0,3.43647064]
[1718037366482,1.920987,3686.1,3686.0,2.72147064]
[1718037366680,1.920987,3686.1,3686.0,3.43647064]
[1718037370878,1.920987,3686.1,3686.0,2.72147064]
[1718037371077,1.920987,3686.1,3686.0,3.43647064]
[1718037372270,1.920987,3686.1,3686.0,2.72147064]
[1718037372487,1.920987,3686.1,3686.0,3.43647064]
[1718037376384,1.920987,3686.1,3686.0,6.29577064]
[1718037376687,1.920987,3686.1,3686.0,6.86479534]
[1718037377189,1.920987,3686.1,3686.0,6.29577064]
[1718037377500,1.920987,3686.1,3686.0,9.57775534]
[1718037377804,1.920987,3686.1,3686.0,9.00873064]
[1718037378097,1.920987,3686.1,3686.0,11.72169064]
[1718037378892,1.705207,3686.1,3686.0,16.14334138]
[1718037379092,1.705207,3686.1,3686.0,16.518684]
[1718037379265,1.705207,3686.1,3686.0,14.72169064]
[1718037383105,2.9196,3687.6,3687.5,2.71186]
[1718037383280,2.9196,3687.6,3687.5,3.42686]
[1718037385274,2.9196,3687.6,3687.5,2.71186]
[1718037385473,3.21156,3687.6,3687.5,3.42686]
[1718037388381,3.21156,3687.6,3687.5,0.715]
[1718037389209,3.21156,3687.6,3687.2,2.71202]
[1718037390286,3.21156,3687.6,3687.2,3.42702]
[1718037394096,3.21156,3687.6,3687.2,0.715]
[1718037394296,0.59233,3687.5,3687.2,0.715]
[1718037395730,2.9144,3687.4,3686.9,2.71224]
[1718037395947,2.9144,3687.4,3687.0,0.715]
[1718037396092,2.71201,3687.3,3686.6,10.15247]
[1718037396299,3.244834,3687.2,3687.0,0.715]
[1718037396722,3.244834,3687.2,3686.6,2.71247]
[1718037396916,3.244834,3687.2,3686.9,0.715]
[1718037402121,3.244834,3687.2,3686.8,2.71237]
[1718037402323,3.244834,3687.2,3687.1,0.715]
[1718037403114,3.244834,3687.2,3686.4,3.04714136]
[1718037403314,0.5956844,3687.1,3686.4,3.04714136]
[1718037403544,2.9732,3687.0,3686.4,0.04714136]
[1718037404058,2.9732,3686.8,3686.4,0.04714136]
[1718037405009,2.71246,3686.7,3686.4,0.04714136]
[1718037407943,2.71246,3686.7,3686.4,0.76214136]
[1718037409323,3.281026,3686.7,3686.4,0.76214136]
[1718037409521,3.281026,3686.7,3686.4,0.04714136]
[1718037412836,0.568566,3686.7,3686.4,0.04714136]
[1718037413049,2.9732,3686.8,3686.4,0.04714136]
[1718037413223,5.6856,3686.8,3686.4,0.04714136]
[1718037413412,5.6856,3686.8,3686.5,0.715]
[1718037416359,5.6856,3686.8,3686.7,0.715]
[1718037417913,2.9732,3686.8,3686.7,0.715]
[1718037418109,2.9732,3686.8,3686.5,0.715]
[1718037421959,2.9233,3687.1,3686.5,0.715]
[1718037422171,2.9233,3687.1,3686.7,0.715]
[1718037422357,3.57161311,3687.1,3686.7,0.715]
[1718037423024,3.50091311,3687.1,3686.7,3.42743]
[1718037423517,2.71223,3687.0,3686.4,2.75975136]
[1718037423722,2.71223,3687.0,3686.4,3.47475136]
[1718037425169,2.71223,3687.0,3686.6,0.715]
[1718037426437,2.8526,3687.1,3686.8,0.715]
[1718037426641,2.7784,3687.4,3686.8,0.715]
[1718037426961,2.7784,3687.4,3687.0,0.715]
[1718037427458,2.7784,3687.4,3687.0,3.42722]
[1718037427633,0.84768113,3687.8,3687.2,0.715]
[1718037427634,2.9799,3687.7,3687.2,0.715]
[1718037427830,0.65392611,3687.6,3687.2,0.715]
[1718037431053,0.65392611,3687.6,3687.1,3.42708]
[1718037432557,3.36573611,3687.6,3687.1,3.42708]
[1718037432760,3.36573611,3687.6,3686.8,2.71233]